{"text_format":"1","workbook":"xlsx","n_sheets":3,"sheets":["Tabelle1","Tabelle2","Tabelle3"],"not_rendered":{"charts":3,"images":1,"macros":1,"external_links":0,"defined_names":0,"comments":0,"pivot_tables":0},"unopened":[],"bounds":{"document_bytes":16777216,"sheet_cells":100000,"rows_first":2000,"rows_last":500,"rows_between":2000,"halvings":0,"cell_chars":16384,"cell_head_chars":4096},"cells_cut":0,"cells_raw":0,"read":"whole","date_system":"1900"}

{"sheet":"Tabelle1","index":0,"n_rows":135,"n_cols":19,"rows_kept":135,"cut":false,"hidden":false,"merged":[]}
[]
[]
[]
["\"Gefühlte\" und tatsächliche Artenvielfalt in Deutschland"]
[]
[null,null,null,null,null,null,null,null,null,null,null,null,null,null,null,"Ingo Mennerich, Oktober 2016"]
[]
["Wie viele Tierarten sind bei uns heimisch?",null,null,null,null,null,null,null,null,null,null,"Grundlage:","Völkl / Blick"]
["Und wie verteilen sie sich auf die systematischen Gruppen? ",null,null,null,null,null,null,null,null,null,null,null,"\"Die quantitative Erfassung der rezenten Fauna von Deutschland –\n\n"]
[null,null,null,null,null,null,null,null,null,null,null,null,"Eine Dokumentation auf der Basis der Auswertung von"]
["Stimmt Ihre Vorstellung davon mit der Wirklichkeit überein?",null,null,null,null,null,null,null,null,null,null,null,"publizierten Artenlisten und Faunen im Jahr 2004\""]
[null,null,null,null,null,null,null,null,null,null,null,null,"(Bundesamt für Naturschutz)"]
[]
[]
[]
["Gruppen auswählen",null,"Artenzahl wählen",null,"\"Gefühlte\" Artenvielfalt",null,null,null,null,null,null,null,null,null,null,null,null,"Tatsächliche Artenvielfalt"]
[]
[null,null,null,null,{"$f":"IF(AND(D108=TRUE,C18>0),A108,\"\")","v":""},{"$f":"IF(AND(D108=TRUE,C18>0),C18,0)","v":0},null,null,null,null,null,null,null,null,null,null,null,{"$f":"IF(AND(D108=TRUE,F18>0),A108,\"\")","v":""},{"$f":"IF(AND(D108=TRUE,F18>0),B108,0)","v":0}]
[null,"(Quallen, Korallen, Polypen)",null,null,"",0,null,null,null,null,null,null,null,null,null,null,null,"",0]
[null,null,null,null,"",0,null,null,null,null,null,null,null,null,null,null,null,"",0]
[null,null,null,null,"",0,null,null,null,null,null,null,null,null,null,null,null,"",0]
[null,"(Schnecken, Tischen\"fische\")",null,null,"",0,null,null,null,null,null,null,null,null,null,null,null,"",0]
[null,"(Regenwürmer, Ecnchyträen)",null,null,"",0,null,null,null,null,null,null,null,null,null,null,null,"",0]
[null,null,null,null,"",0,null,null,null,null,null,null,null,null,null,null,null,"",0]
[null,"(Milben, Zecken, Spinnen)",100,null,"Spinnentiere",100,null,null,null,null,null,null,null,null,null,null,null,"Spinnentiere",3783]
[null,"(Asseln, Krabben, Krebse)",50,null,"Krebse",50,null,null,null,null,null,null,null,null,null,null,null,"Krebse",1067]
[null,"(Schnurfüßer)",null,null,"",0,null,null,null,null,null,null,null,null,null,null,null,"",0]
[null,"(Springschwänze, Käfer, Schmetterlinge)",6000,null,"Insekten",6000,null,null,null,null,null,null,null,null,null,null,null,"Insekten",33305]
[null,null,null,null,"",0,null,null,null,null,null,null,null,null,null,null,null,"",0]
[null,null,null,null,"",0,null,null,null,null,null,null,null,null,null,null,null,"",0]
[null,null,null,null,"",0,null,null,null,null,null,null,null,null,null,null,null,"",0]
[null,null,null,null,"",0,null,null,null,null,null,null,null,null,null,null,null,"",0]
[null,null,null,null,"",0,null,null,null,null,null,null,null,null,null,null,null,"",0]
[null,null,null,null,"",0,null,null,null,null,null,null,null,null,null,null,null,"",0]
[null,null,null,null,"",0,null,null,null,null,null,null,null,null,null,null,null,"",0]
[null,"(Seeigel, Seesterne)",50,null,"Stachelhäuter",50,null,null,null,null,null,null,null,null,null,null,null,"Stachelhäuter",26]
[null,"(Seescheiden, Salpen)",null,null,"",0,null,null,null,null,null,null,null,null,null,null,null,"",0]
[null,"(Neunaugen, Schleimaale)",null,null,"",0,null,null,null,null,null,null,null,null,null,null,null,"",0]
[null,"(Haie, Rochen)",null,null,"",0,null,null,null,null,null,null,null,null,null,null,null,"",0]
[null,"(Forellen, Hechte)",null,null,"",0,null,null,null,null,null,null,null,null,null,null,null,"",0]
[null,"(Frösche, Kröten, Molche)",30,null,"Amphibien",30,null,null,null,null,null,null,null,null,null,null,null,"Amphibien",21]
[null,"(Eidechsen, Schlangen, Schildkröten)",50,null,"Reptilien",50,null,null,null,null,null,null,null,null,null,null,null,"Reptilien",13]
[null,"(Meisen, Enten, Eulen)",300,null,"Vögel",300,null,null,null,null,null,null,null,null,null,null,null,"Vögel",314]
[null,"(Mäuse, Igel, Hirsche)",500,null,"Säugetiere",500,null,null,null,null,null,null,null,null,null,null,null,"Säugetiere",91]
[null,"(Rippenquallen, Kiefernmündchen, Spritzwürmer, Kelchtiere, Igelwürmer, Priapswürmer, Kranzfühler, Pfeilwürmer, Eichelwürmer, Kieferlose)",null,null,"",0,null,null,null,null,null,null,null,null,null,null,null,"",0]
[]
[]
[]
[]
[]
[]
[]
[]
[]
[]
[]
[]
[]
[]
[]
[]
[]
[]
[]
[]
[]
[]
[]
[]
[]
[]
[]
[]
[]
[]
[]
[]
[]
[]
[]
[]
[]
[]
[]
[]
[]
[]
[]
[]
[]
[]
[]
[]
[]
[]
[]
[]
[]
[]
[]
[]
[]
[]
["DATENBASIS ",null,null,"PRÜFUNG"]
[]
["Arten","Zahl",null,"W/F"]
[]
["Schwämme",31]
["Nesseltiere",121]
["Plattwürmer",1170]
["Schnurwürmer",46]
["Weichtiere",601]
["Ringelwürmer",518]
["Bärtierchen",105]
["Spinnentiere",3783,null,true]
["Krebse",1067,null,true]
["Tausendfüßler",216]
["Insekten",33305,null,true]
["Bauchharlinge",120]
["Fadenwürmer",1997]
["Saitenwürmer",46]
["Rädertiere",682]
["Kratzer",89]
["Hakenrüssler",21]
["Moostierchen",85]
["Stachelhäuter",26,null,true]
["Manteltiere",25]
["Rundmäuler",5]
["Knorpelfische",32]
["Knochenfische",227]
["Amphibien",21,null,true]
["Reptilien",13,null,true]
["Vögel",314,null,true]
["Säugetiere",91,null,true]
["Sonstige",30]

{"sheet":"Tabelle2","index":1,"n_rows":0,"n_cols":0,"rows_kept":0,"cut":false,"hidden":false,"merged":[]}

{"sheet":"Tabelle3","index":2,"n_rows":0,"n_cols":0,"rows_kept":0,"cut":false,"hidden":false,"merged":[]}